bitfinex/quotes_SOLUSD_20240703
["timestamp","ask_amount","ask_price","bid_price","bid_amount"]
[1720048904268,24.0537,140.97,140.92,41.7963]
[1720048904463,16.96,140.96,140.92,41.7963]
[1720048906264,16.96,140.96,140.92,24.8363]
[1720048906563,24.0547,140.95,140.92,17.7403]
[1720048906764,16.96,140.95,140.92,17.7403]
[1720048907156,16.96,140.95,140.92,24.8363]
[1720048908461,16.96,140.96,140.93,7.0956]
[1720048908653,16.96,140.96,140.92,17.7403]
[1720048908654,16.96,140.97,140.94,7.095]
[1720048910562,0.34,140.98,140.95,7.0947]
[1720048910767,17.3,140.98,140.95,7.0947]
[1720048910944,20.0,140.97,140.95,7.0947]
[1720048911346,20.0,140.97,140.94,24.8327]
[1720048911948,17.3,140.98,140.94,24.8327]
[1720048912164,16.96,140.97,140.94,17.7377]
[1720048912367,17.13,140.97,140.93,7.4125134]
[1720048912564,16.96,140.96,140.93,7.4125134]
[1720048913363,17.13,140.97,140.93,7.4125134]
[1720048916258,17.13,140.97,140.94,7.0951]
[1720048916865,0.17,140.97,140.94,7.0951]
[1720048917178,17.3,140.97,140.94,7.0951]
[1720048918074,0.34,140.97,140.94,7.0951]
[1720048918280,17.3,140.97,140.94,7.0951]
[1720048920573,0.34,140.97,140.93,0.3169134]
[1720048920856,7.0945,140.96,140.93,0.3169134]
[1720048921081,0.34,140.95,140.93,0.3169134]
[1720048921278,17.3,140.95,140.93,0.3169134]
[1720048921574,16.96,140.96,140.93,0.3169134]
[1720048921783,16.96,140.97,140.93,0.3169134]
[1720048921983,0.34,140.98,140.95,7.0947]
[1720048922280,17.3,140.98,140.96,7.094]
[1720048922777,17.3,140.98,140.95,7.0945]
[1720048922979,16.96,140.97,140.94,24.8328]
[1720048924488,16.96,140.97,140.95,7.0945]
[1720048924978,17.3,140.98,140.95,7.0945]
[1720048927459,17.3,140.98,140.94,24.8328]
[1720048927862,16.96,140.97,140.94,24.8328]
[1720048929456,16.96,140.96,140.94,17.7378]
[1720048930160,16.96,140.96,140.94,24.833]
[1720048930360,16.96,140.97,140.94,24.833]
[1720048932989,7.4332,140.98,140.94,24.833]
[1720048933191,16.96,140.97,140.94,24.833]
[1720048933580,0.34,140.98,140.95,7.0945]
[1720048933779,0.34,140.99,140.95,7.0945]
[1720048933983,16.96,140.98,140.95,7.0945]
[1720048935100,16.96,140.97,140.95,7.0945]
[1720048935292,16.96,140.98,140.95,7.0945]
[1720048935492,0.17,140.97,140.95,7.0945]
[1720048937691,0.17,140.97,140.94,24.8328]
[1720048950404,17.7262,141.04,140.94,24.8328]
[1720048950405,15.8041,141.04,140.96,17.7353]
[1720048950592,53.82025936,141.03,140.98,7.0928]
[1720048950908,6.25241388,141.02,140.99,16.96]
[1720048951092,16.96,141.05,141.03,17.7256]
[1720048951600,16.96,141.05,141.02,7.0908]
[1720048951601,6.2541962,141.04,141.02,7.0908]
[1720048951803,16.96,141.05,141.01,7.0915]
[1720048951992,6.25422576,141.04,141.01,7.0915]
[1720048952193,16.96,141.05,141.01,7.0915]
[1720048952384,6.59425087,141.04,141.01,7.0915]
[1720048952589,0.34,141.04,141.01,7.0915]
[1720048952996,16.96,141.05,141.01,7.0915]
[1720048956905,16.96,141.02,140.97,33.767]
[1720048957137,7.0913,141.02,140.97,40.8602]
[1720048957414,16.96,141.01,140.97,40.8602]
[1720048957818,16.96,141.01,140.98,7.093]
[1720048959204,16.96,141.01,140.99,7.0926]
[1720048960191,7.2608,141.03,140.97,17.7335]
[1720048960416,16.96,140.98,140.97,17.7335]
[1720048961119,16.96,140.98,140.97,24.8272]
[1720048961319,16.96,140.99,140.97,24.8272]
[1720048961514,7.2613,141.02,140.98,7.0932]
[1720048961515,0.34,141.0,140.98,7.0932]
[1720048961717,16.96,141.0,140.98,7.0932]
[1720048963109,16.96,141.0,140.97,24.827]
[1720048963500,16.96,140.99,140.97,24.827]
[1720048966104,7.2617,141.01,140.97,24.827]
[1720048966400,16.96,140.99,140.97,24.827]
[1720048966606,16.96,140.99,140.96,7.094]
[1720048967725,16.96,140.99,140.97,7.0936]
[1720048967902,17.13,141.0,140.97,7.0936]
[1720048970400,7.0907,141.03,140.98,17.7326]
[1720048970603,36.96,141.02,140.99,7.0922]
[1720048973942,36.96,141.02,140.98,24.8256]
[1720048975129,44.0512,141.02,140.98,24.8256]
[1720048981719,36.96,141.02,140.98,24.8256]
[1720048981942,20.0,141.02,140.98,41.7856]
[1720048983013,23.8639,141.06,140.98,41.7856]
[1720048983014,7.0902,141.04,140.98,34.6926]
[1720048983235,7.09,141.05,141.0,34.6903]
[1720048983445,24.05,141.05,141.0,34.6903]
[1720048983622,24.05,141.05,141.01,25.46976684]
[1720048984232,7.0893,141.06,141.02,7.0911]
[1720048984438,6.25335413,141.05,141.03,8.50839873]
[1720048984636,16.96,141.06,141.03,1.41799873]
[1720048984820,26.25350162,141.05,141.03,1.41799873]
[1720048985020,20.0,141.05,141.02,24.8182]
[1720048985327,36.96,141.05,141.02,17.7273]
[1720048986545,36.96,141.05,141.02,24.8183]
[1720048989832,36.936,141.05,141.02,24.8183]
[1720048990034,36.936,141.05,141.02,17.7273]
[1720048990235,16.96,141.04,141.02,17.7273]
[1720048990939,36.936,141.05,141.02,24.8184]
[1720048992238,19.976,141.05,141.02,24.8184]
[1720048994548,36.936,141.05,141.02,24.8184]
[1720048996339,36.936,141.05,140.99,17.7311]
[1720048996340,0.17,141.04,140.99,17.7311]
[1720048996642,20.34,141.04,141.01,7.0914]
[1720048996829,36.96,141.04,141.02,7.0911]
[1720048997020,36.96,141.04,141.01,24.8205]
[1720048997021,16.96,141.04,141.01,24.8205]
[1720048999626,16.96,141.02,140.99,7.0925]
[1720049001833,0.17,141.03,141.0,7.0921]
[1720049002024,16.96,141.01,141.0,7.0921]
[1720049002730,16.96,141.01,140.98,24.8252]
[1720049002927,16.96,141.0,140.98,24.8252]
[1720049003351,16.96,140.99,140.98,24.8252]
[1720049004529,16.96,140.99,140.98,17.7324]
[1720049004743,16.96,141.0,140.98,17.7324]
[1720049004936,0.17,141.01,140.98,17.7324]
[1720049004937,17.13,141.01,140.98,17.7324]
[1720049005145,0.17,141.0,140.98,17.7324]
[1720049006345,0.17,141.0,140.98,24.8254]
[1720049006940,0.17,141.0,140.99,7.0927]
[1720049007155,16.96,141.01,141.0,7.0921]
[1720049007331,16.96,141.01,140.96,32.9325]
[1720049007332,15.7743,141.07,140.99,16.96]
[1720049007651,16.96,141.04,141.02,24.8186]
[1720049008156,20.0,141.03,141.02,24.8186]
[1720049008657,20.17,141.03,141.02,24.8186]
[1720049009352,37.13,141.03,141.02,17.7277]
[1720049009547,37.13,141.03,141.01,7.0915]
[1720049012636,20.0,141.03,141.02,7.0911]
[1720049014355,16.96,141.05,141.03,7.0906]
[1720049015750,16.96,141.05,141.02,7.0911]
[1720049016143,16.96,141.04,141.02,7.0911]
[1720049017848,16.96,141.05,141.02,7.0911]
[1720049018744,16.96,141.04,141.01,24.8205]
[1720049019758,16.96,141.03,141.01,24.8205]
[1720049021349,0.17,141.02,140.98,17.732]
[1720049021540,16.96,141.01,140.99,7.0923]
[1720049021954,0.17,141.02,141.0,7.0921]
[1720049022159,16.96,141.02,141.0,7.0921]
[1720049025165,16.96,141.01,141.0,7.0921]
[1720049025767,16.96,141.01,140.99,7.0925]
[1720049025939,16.96,141.0,140.99,7.0925]
[1720049029054,7.4307,141.03,140.99,7.0925]
[1720049029368,16.96,141.0,140.99,7.0925]
[1720049030264,17.13,141.0,140.99,7.0925]
[1720049030456,17.3,141.0,140.99,7.0925]
[1720049033473,0.17,141.0,140.99,7.0925]
[1720049033651,16.96,141.01,141.0,7.092]
[1720049033853,17.3,141.01,141.0,7.092]
[1720049034555,17.13,141.01,141.0,7.092]
[1720049034757,16.96,141.01,141.0,7.092]
[1720049034964,16.96,141.02,141.0,7.092]
[1720049036058,16.96,141.01,141.0,7.092]
[1720049036258,16.96,141.01,140.99,7.0925]
[1720049036772,0.34,141.03,140.99,7.0925]
[1720049037075,16.96,141.01,141.0,7.0921]
[1720049037281,16.96,141.01,140.99,7.0925]
[1720049038867,16.96,141.01,141.0,7.0921]
[1720049039067,20.0,141.03,141.0,17.7295]
[1720049039261,16.96,141.05,141.03,7.0905]
[1720049041259,16.96,141.05,141.02,24.8185]
[1720049045565,7.4293,141.06,141.02,24.8185]
[1720049045763,16.96,141.05,141.02,24.8185]
[1720049046365,0.17,141.06,141.02,24.8185]
[1720049046581,17.13,141.06,141.02,24.8185]
[1720049046983,24.2192,141.06,141.02,24.8185]
[1720049051986,24.2192,141.06,141.02,17.7275]
[1720049051987,16.96,141.04,141.02,17.7275]
[1720049054268,16.96,141.04,141.02,24.8184]
[1720049054673,16.96,141.05,141.02,24.8184]
[1720049055407,16.96,141.04,141.02,24.8184]
[1720049060783,16.96,141.04,141.03,7.0906]
[1720049060985,17.13,141.04,141.03,7.0906]
[1720049062693,0.17,141.04,141.03,7.0906]
[1720049063304,22.9382,141.11,141.07,7.0882]
[1720049063511,26.26371657,141.1,141.06,17.7221]
[1720049063687,16.96,141.09,141.08,7.0879]
[1720049063884,16.96,141.09,141.07,7.0885]
[1720049064078,20.0,141.08,141.07,7.0885]
[1720049064909,0.17,141.08,141.07,7.0885]
[1720049065409,0.17,141.08,141.06,24.8112]
[1720049068093,0.17,141.08,141.06,17.7221]
[1720049068592,17.13,141.08,141.06,17.7221]
[1720049072015,0.17,141.08,141.06,17.7221]
[1720049072216,17.13,141.08,141.06,24.8111]
[1720049076998,0.17,141.08,141.06,24.8111]
[1720049077214,0.34,141.09,141.06,24.8111]
[1720049077518,16.96,141.08,141.06,24.8111]
[1720049079311,17.3,141.09,141.06,24.8111]
[1720049080923,16.96,141.08,141.06,24.8111]
[1720049081526,16.96,141.08,141.06,17.7221]
[1720049082503,0.34,141.09,141.06,17.7221]
[1720049082911,20.34,141.09,141.06,17.7221]
[1720049083111,20.34,141.09,141.06,24.8111]
[1720049086107,7.09,141.05,141.01,7.0915]
[1720049086320,16.96,141.03,141.0,24.8212]
[1720049086548,0.17,141.04,140.96,6.6147]
[1720049086844,16.96,140.99,140.97,24.8267]
[1720049087410,16.96,140.99,140.98,7.0932]
[1720049094536,16.96,140.99,140.97,17.7332]
[1720049094749,16.96,140.98,140.97,17.7332]
[1720049096222,16.96,140.98,140.97,24.8268]
[1720049101532,0.34,141.0,140.97,24.8268]
[1720049101851,16.96,140.98,140.97,24.8268]
[1720049102253,16.96,140.98,140.97,17.7332]
[1720049102460,17.3,140.98,140.97,17.7332]
[1720049102768,17.3,140.98,140.96,7.094]
[1720049103056,16.96,140.97,140.96,7.094]
[1720049103563,16.96,140.97,140.95,7.0945]
[1720049103748,16.96,140.96,140.95,7.0945]
[1720049104557,16.96,140.96,140.94,24.832]
[1720049104948,16.96,140.96,140.95,7.0947]
[1720049105135,16.96,140.96,140.94,17.7369]
[1720049105350,17.3,140.98,140.95,7.0947]
[1720049105542,16.96,140.96,140.95,7.0947]
[1720049108847,20.0,140.97,140.95,7.0947]
[1720049109049,16.96,140.96,140.95,7.0947]
[1720049111370,17.13,140.96,140.94,24.8319]
[1720049111544,16.96,140.96,140.94,24.8319]
[1720049120146,7.0943,140.96,140.93,0.3169134]
[1720049120352,16.96,140.94,140.93,0.3169134]
[1720049120563,17.13,140.94,140.93,0.3169134]
[1720049122946,0.17,140.94,140.93,0.3169134]
[1720049123148,17.13,140.94,140.93,0.3169134]
[1720049126968,0.17,140.94,140.93,0.3169134]
[1720049127179,17.13,140.94,140.93,0.3169134]
[1720049127486,17.13,140.94,140.93,7.4126134]
[1720049128177,0.17,140.94,140.93,7.4126134]
[1720049128387,17.13,140.94,140.93,7.4126134]
[1720049129583,0.17,140.94,140.93,0.3169134]
[1720049129772,17.13,140.94,140.93,7.4126134]
[1720049129968,17.13,140.94,140.93,0.3169134]
[1720049136974,22.20733788,141.01,140.93,0.3169134]
[1720049137162,16.96,140.96,140.95,7.0947]
[1720049137363,36.96,140.96,140.94,7.095]
[1720049137668,36.96,140.96,140.93,7.4124134]
[1720049138168,16.96,140.95,140.93,7.4124134]
[1720049140288,20.0,140.96,140.93,0.3169134]
[1720049140486,17.13,140.94,140.93,0.3169134]
[1720049150290,17.3,140.94,140.93,0.3169134]
[1720049151592,44.3952,140.94,140.93,0.3169134]
[1720049159204,20.34,140.94,140.93,0.3169134]
[1720049159411,36.96,140.94,140.93,0.3169134]
[1720049160727,37.3,140.94,140.93,0.3169134]
[1720049160899,20.0,140.94,140.93,0.3169134]
[1720049161618,20.0,140.94,140.93,7.4126134]
[1720049162298,20.0,140.94,140.93,0.3169134]
[1720049162617,16.96,140.97,140.95,7.0945]
[1720049163023,16.96,140.97,140.94,17.7375]
[1720049163310,16.96,140.97,140.93,0.3169134]
[1720049163519,7.0943,140.96,140.93,0.3169134]
[1720049163724,16.96,140.96,140.93,7.4125134]
[1720049165513,16.96,140.95,140.93,0.3169134]
[1720049166302,16.96,140.95,140.93,7.4125134]
[1720049166932,16.96,140.96,140.93,7.4125134]
[1720049168012,7.0927,140.99,140.95,7.0947]
[1720049168314,17.13,140.98,140.95,7.0947]
[1720049168512,16.96,140.97,140.94,22.2591]
[1720049169617,16.96,140.97,140.95,7.0945]
[1720049170411,16.96,140.97,140.94,7.0951]
[1720049170719,16.96,140.97,140.93,25.1513134]
[1720049170720,16.96,140.95,140.93,25.1513134]
[1720049172526,16.96,140.95,140.94,7.0952]
[1720049173105,16.96,140.95,140.93,25.1513134]
[1720049173614,16.96,140.95,140.94,7.0952]
[1720049173806,17.3,140.95,140.94,7.0952]
[1720049174130,28.17084949,141.03,140.96,17.7354]
[1720049174302,6.26417107,141.02,140.96,16.96]
[1720049174504,16.96,141.01,140.96,16.96]
[1720049175121,16.96,141.01,140.99,7.0922]
[1720049175932,0.17,141.0,140.98,24.8253]
[1720049178722,0.17,141.0,140.98,17.7323]
[1720049178932,17.13,141.0,140.98,17.7323]
[1720049179943,24.2222,141.0,140.96,7.094]
[1720049180228,16.96,140.99,140.96,7.094]
[1720049180427,16.96,140.98,140.95,17.7359]
[1720049180617,24.0532,140.98,140.95,17.7359]
[1720049180810,16.96,140.98,140.95,17.7359]
[1720049181011,16.96,140.98,140.95,24.8303]
[1720049181531,0.17,140.99,140.96,7.0939]
[1720049181725,17.13,140.99,140.96,7.0939]
[1720049190224,17.13,140.98,140.95,17.7359]
[1720049190434,16.96,140.96,140.93,0.3169134]
[1720049190623,16.96,140.96,140.93,7.4124134]
[1720049190820,16.96,140.96,140.94,7.0948]
[1720049191335,16.96,140.96,140.95,7.0947]
[1720049191536,17.3,140.96,140.95,7.0947]
[1720049192838,17.3,140.96,140.94,24.8329]
[1720049195323,17.3,140.96,140.95,7.0947]
[1720049197035,0.34,140.96,140.95,7.0947]
[1720049197234,0.17,140.96,140.95,7.0947]
[1720049200038,20.0,140.99,140.96,7.094]
[1720049200229,17.13,140.98,140.96,7.094]
[1720049201130,16.96,140.97,140.94,17.7378]
[1720049201327,0.17,140.96,140.94,17.7378]
[1720049202323,0.17,140.96,140.94,24.8329]
[1720049204321,0.17,140.96,140.95,7.0947]
[1720049204517,17.13,140.96,140.94,17.7378]
[1720049204737,16.96,140.95,140.94,17.7378]
[1720049204933,17.13,140.95,140.94,17.7378]
[1720049205935,17.13,140.95,140.94,24.833]
[1720049206731,17.13,140.95,140.94,17.7378]
[1720049206931,17.3,140.95,140.94,17.7378]
[1720049207850,17.3,140.95,140.94,24.833]
[1720049211958,17.3,140.95,140.94,17.7378]
[1720049212127,17.3,140.95,140.93,0.3169134]
[1720049212351,17.3,140.94,140.93,0.3169134]
[1720049212549,37.3,140.94,140.93,0.3169134]
[1720049218651,59.6477,140.94,140.93,0.3169134]
[1720049220548,35.5925,140.94,140.93,0.3169134]
[1720049220748,52.5525,140.94,140.93,0.3169134]
[1720049221348,59.6477,140.94,140.93,0.3169134]
[1720049223562,104.6477,140.94,140.93,0.3169134]
[1720049225838,114.5125,140.94,140.84,17.7496]
[1720049226049,16.96,140.88,140.84,17.7496]
[1720049226852,16.96,140.88,140.86,7.0992]
[1720049230347,17.3,140.87,140.85,7.0996]
[1720049230664,16.96,140.87,140.86,7.0992]
[1720049230864,17.3,140.87,140.85,7.0995]
[1720049231041,17.13,140.87,140.85,7.0995]
[1720049231240,17.13,140.87,140.86,7.0992]
[1720049231447,17.3,140.87,140.86,7.0992]
[1720049232169,17.3,140.87,140.85,7.0995]
[1720049232344,0.17,140.86,140.84,17.7496]
[1720049232547,17.3,140.86,140.84,17.7496]
[1720049232746,16.96,140.85,140.84,17.7496]
[1720049232966,17.13,140.85,140.84,17.7496]
[1720049233348,17.13,140.85,140.84,24.8498]
[1720049233549,17.3,140.85,140.84,24.8498]
[1720049234048,0.34,140.85,140.84,24.8498]
[1720049235169,16.96,140.86,140.85,7.0997]
[1720049235372,36.96,140.87,140.86,7.0992]
[1720049235544,36.96,140.87,140.84,24.8497]
[1720049236551,0.34,140.86,140.84,24.8497]
[1720049236760,17.3,140.86,140.84,24.8497]
[1720049238773,17.3,140.86,140.84,17.7496]
[1720049238960,17.3,140.86,140.82,7.1011]
[1720049239276,17.3,140.86,140.83,7.1007]
[1720049242158,0.34,140.86,140.83,7.1007]
[1720049245680,20.0,140.87,140.84,7.0998]
[1720049245849,16.96,140.88,140.84,7.0998]
[1720049246049,20.0,140.87,140.84,7.0998]
[1720049252572,20.0,140.87,140.84,24.0598]
[1720049255178,20.0,140.87,140.84,16.96]
[1720049256074,20.0,140.87,140.85,16.96]
[1720049256276,7.0973,140.9,140.85,24.0593]
[1720049256469,20.0,140.89,140.86,16.96]
[1720049256670,27.0978,140.89,140.85,24.0593]
[1720049258783,27.0978,140.89,140.85,16.96]
[1720049259684,7.0982,140.88,140.85,16.96]
[1720049260175,20.0,140.87,140.85,16.96]
[1720049262383,20.0,140.87,140.84,7.1001]
[1720049262677,20.0,140.87,140.85,16.96]
[1720049262885,20.0,140.87,140.84,16.96]
[1720049263873,7.0982,140.88,140.84,16.96]
[1720049264074,20.0,140.87,140.84,16.96]
[1720049265092,20.0,140.87,140.84,24.0601]
[1720049265871,36.96,140.87,140.8,17.7549]
[1720049266182,7.1001,140.85,140.82,16.96]
[1720049266684,7.1001,140.85,140.8,24.8569]
[1720049266985,7.1009,140.83,140.79,0.8367886]
[1720049267162,7.1009,140.83,140.79,17.7967886]
[1720049267364,44.2303,140.84,140.79,24.8993886]
[1720049267777,44.2303,140.84,140.8,16.96]
[1720049267975,44.2303,140.84,140.8,24.0622]
[1720049268290,20.17,140.84,140.8,24.0622]
[1720049268986,20.17,140.84,140.8,7.1022]
[1720049269187,20.17,140.84,140.8,24.0622]
[1720049272284,0.17,140.84,140.8,24.0622]
[1720049272491,20.34,140.84,140.8,24.0622]
[1720049273374,27.4402,140.84,140.8,24.0622]
[1720049274787,20.17,140.84,140.81,7.1017]
[1720049274991,20.0,140.84,140.81,24.0617]
[1720049275705,20.0,140.84,140.81,7.1017]
[1720049275872,20.0,140.84,140.82,16.96]
[1720049276073,20.0,140.84,140.82,24.0612]
[1720049276289,7.0987,140.87,140.83,24.0607]
[1720049276501,20.34,140.86,140.83,16.96]
[1720049277394,20.0,140.86,140.83,16.96]
[1720049277581,20.0,140.86,140.84,16.96]
[1720049278509,27.0992,140.86,140.84,16.96]
[1720049279198,20.0,140.86,140.84,16.96]
[1720049279511,20.0,140.86,140.83,16.96]
[1720049279512,27.0992,140.86,140.83,16.96]
[1720049280213,20.0,140.86,140.83,16.96]
[1720049280583,20.0,140.85,140.83,16.96]
[1720049280785,32.0521,140.88,140.83,16.96]
[1720049280977,20.34,140.87,140.83,16.96]
[1720049281178,7.0992,140.86,140.83,16.96]
[1720049281579,20.0,140.85,140.83,16.96]
[1720049284615,20.0,140.85,140.82,7.1012]
[1720049284783,20.0,140.85,140.82,24.0612]
[1720049285507,27.1,140.85,140.82,16.96]
[1720049285897,27.1,140.85,140.81,41.8158]
[1720049286283,27.1,140.85,140.82,16.96]
[1720049287304,5.65490058,140.91,140.83,17.7516]
[1720049287510,26.24134028,140.9,140.85,16.96]
[1720049287688,20.0,140.9,140.86,16.96]
[1720049288001,7.098,140.89,140.87,16.96]
[1720049288205,7.0983,140.88,140.86,16.96]
[1720049288503,20.0,140.87,140.86,16.96]
[1720049288705,20.0,140.87,140.85,34.7091]
[1720049288890,20.0,140.87,140.86,16.96]
[1720049293724,7.0979,140.89,140.86,16.96]
[1720049293928,20.0,140.88,140.87,16.96]
[1720049295445,27.0982,140.88,140.87,16.96]
[1720049302925,7.0987,140.87,140.86,16.96]
[1720049307138,27.0984,140.88,140.86,16.96]
[1720049308956,7.0987,140.87,140.86,16.96]
[1720049309129,7.0987,140.87,140.85,16.96]
[1720049309453,7.0987,140.87,140.84,16.96]
[1720049310359,7.0987,140.87,140.85,16.96]
[1720049311728,7.4384,140.88,140.85,16.96]
[1720049311928,0.34,140.87,140.85,16.96]
[1720049317655,0.34,140.88,140.85,16.96]
[1720049317850,20.34,140.88,140.85,16.96]
[1720049318172,20.34,140.88,140.85,24.0596]
[1720049320450,20.34,140.88,140.85,7.0996]
[1720049320655,20.34,140.88,140.85,24.0596]
[1720049327153,20.34,140.88,140.85,7.0996]
[1720049327354,20.34,140.88,140.85,24.0596]
[1720049328261,20.34,140.88,140.86,7.099]
[1720049328437,0.34,140.88,140.86,24.059]
[1720049328643,0.34,140.89,140.86,24.059]
[1720049329059,0.34,140.89,140.87,16.96]
[1720049329264,20.34,140.89,140.86,24.059]
[1720049331642,20.34,140.89,140.86,16.96]
[1720049333067,27.4378,140.89,140.85,7.0995]
[1720049333250,27.4378,140.89,140.86,16.96]
[1720049334341,27.4378,140.89,140.85,24.0595]
[1720049336470,27.4378,140.89,140.82,7.1008]
[1720049336471,7.0989,140.87,140.82,7.1008]
[1720049336769,7.0983,140.88,140.85,16.96]
[1720049339266,16.537,140.87,140.79,18.5931886]
[1720049339464,7.1011,140.83,140.8,16.96]
[1720049339979,7.1003,140.84,140.8,16.96]
[1720049340170,7.1003,140.84,140.8,24.0622]
[1720049341166,7.1003,140.84,140.81,16.96]
[1720049342758,0.17,140.85,140.83,16.96]
[1720049342954,20.17,140.86,140.83,16.96]
[1720049343157,20.0,140.86,140.84,24.06]
[1720049343350,7.0979,140.89,140.85,16.96]
[1720049343550,16.96,140.9,140.85,16.96]
[1720049343844,7.0985,140.88,140.85,16.96]
[1720049344862,0.17,140.87,140.84,16.96]
[1720049345574,20.17,140.87,140.84,16.96]
[1720049346781,7.0995,140.86,140.84,16.96]
[1720049346979,0.34,140.87,140.8,17.7546]
[1720049347276,7.1007,140.84,140.8,41.8167]
[1720049349377,7.0998,140.85,140.81,24.0615]
[1720049349560,20.0,140.84,140.81,24.0615]
[1720049356469,20.0,140.84,140.81,7.1015]
[1720049359070,20.0,140.84,140.8,41.8166]
[1720049359376,20.0,140.84,140.8,34.7146]
[1720049359685,20.0,140.84,140.81,24.0615]
[1720049359868,24.3993,140.86,140.81,24.0615]
[1720049360064,20.0,140.85,140.81,24.0615]
[1720049360460,27.0998,140.85,140.81,24.0615]
[1720049363382,17.7451,140.89,140.81,24.0615]
[1720049363383,30.56047813,140.91,140.83,17.7514]
[1720049363675,7.0978,140.89,140.86,16.96]
[1720049363862,7.0983,140.88,140.86,16.96]
[1720049364678,7.0978,140.89,140.86,16.96]
[1720049365681,7.0978,140.89,140.85,7.0997]
[1720049365880,20.0,140.88,140.86,16.96]
[1720049367584,20.0,140.88,140.87,16.96]
[1720049370481,20.0,140.88,140.84,7.0998]
[1720049370679,20.0,140.88,140.87,16.96]
[1720049373762,7.0974,140.9,140.87,16.96]
[1720049373967,20.0,140.89,140.87,16.96]
[1720049377695,7.0974,140.9,140.87,16.96]
[1720049377997,20.0,140.89,140.87,16.96]
[1720049379798,20.0,140.89,140.88,16.96]
[1720049381190,27.0977,140.89,140.85,24.8483]
[1720049381405,27.2677,140.89,140.87,16.96]
[1720049384591,20.17,140.89,140.87,16.96]
[1720049391893,20.0,140.89,140.88,7.0982]
[1720049392098,7.0958,140.93,140.89,7.0977]
[1720049392298,20.34,140.92,140.89,24.0577]
[1720049392924,20.34,140.92,140.89,34.7037]
[1720049393129,0.34,140.92,140.89,24.8412]
[1720049393304,0.34,140.92,140.89,41.8012]
[1720049393694,27.4362,140.92,140.89,34.7037]
[1720049394129,27.4362,140.92,140.89,16.96]
[1720049395203,27.4362,140.92,140.88,7.0981]
[1720049395398,27.4362,140.92,140.88,24.0581]
[1720049399203,27.4362,140.92,140.88,7.0981]
[1720049399405,27.4362,140.92,140.88,24.0581]
[1720049400006,20.34,140.92,140.86,17.747]
[1720049400208,20.34,140.92,140.88,17.7454]
[1720049400519,20.0,140.91,140.88,41.8034]
[1720049400733,7.4375,140.9,140.86,7.0988]
[1720049400917,7.4375,140.9,140.86,24.0588]
[1720049401104,20.0,140.89,140.86,24.0588]
[1720049402830,20.0,140.89,140.87,16.96]
[1720049403014,20.34,140.9,140.87,16.96]